[Event "*** SCC Grand Prix: Titled Tuesday Blitz"]
[Site "Chess.com"]
[Date "2020.06.23"]
[Round "5"]
[White "MartinMatthiesen"]
[Black "shineatchess"]
[Result "1/2-1/2"]
[WhiteElo "2334"]
[BlackElo "2130"]
[TimeControl "180+1"]
[EndTime "10:57:05 PDT"]
[Termination "Game drawn by repetition"]

1. d4 {[%clk 0:03:00.9]} 1... Nf6 {[%clk 0:02:59.3]} 2. c4 {[%clk 0:03:00.4]}
2... e6 {[%clk 0:02:59.4]} 3. Nf3 {[%clk 0:02:59.9]} 3... d5 {[%clk 0:02:58.8]}
4. Nc3 {[%clk 0:02:59.3]} 4... Be7 {[%clk 0:02:58.2]} 5. Bf4 {[%clk 0:02:58.6]}
5... O-O {[%clk 0:02:57.6]} 6. a3 {[%clk 0:02:58.4]} 6... b6 {[%clk 0:02:56.8]}
7. e3 {[%clk 0:02:50.4]} 7... Bb7 {[%clk 0:02:56.9]} 8. cxd5 {[%clk 0:02:49.2]}
8... Nxd5 {[%clk 0:02:55.9]} 9. Nxd5 {[%clk 0:02:48.5]} 9... Bxd5 {[%clk
0:02:53.2]} 10. Bd3 {[%clk 0:02:46.3]} 10... Nd7 {[%clk 0:02:46.4]} 11. Qe2
{[%clk 0:02:20.2]} 11... c5 {[%clk 0:02:45.4]} 12. e4 {[%clk 0:02:13.7]} 12...
Bb7 {[%clk 0:02:44.5]} 13. Rd1 {[%clk 0:01:55.3]} 13... cxd4 {[%clk 0:02:43.2]}
14. Nxd4 {[%clk 0:01:55.2]} 14... e5 {[%clk 0:02:43.3]} 15. Nf5 {[%clk 0:01:55]}
15... exf4 {[%clk 0:02:38.3]} 16. Bb5 {[%clk 0:01:54.4]} 16... Bc8 {[%clk
0:02:20.3]} 17. Qg4 {[%clk 0:01:53.5]} 17... Bf6 {[%clk 0:01:46.7]} 18. Bxd7
{[%clk 0:01:52.1]} 18... Bxd7 {[%clk 0:01:18.1]} 19. Rxd7 {[%clk 0:01:51]} 19...
Qe8 {[%clk 0:01:10.6]} 20. Nd6 {[%clk 0:01:26.9]} 20... Qe5 {[%clk 0:01:01.3]}
21. O-O {[%clk 0:01:15.4]} 21... h5 {[%clk 0:00:55.7]} 22. Qf3 {[%clk
0:01:07.4]} 22... Qe6 {[%clk 0:00:45.3]} 23. Qh3 {[%clk 0:01:06.6]} 23... Qxh3
{[%clk 0:00:44.1]} 24. gxh3 {[%clk 0:01:07.5]} 24... Rad8 {[%clk 0:00:42.5]} 25.
Rxd8 {[%clk 0:01:03.5]} 25... Rxd8 {[%clk 0:00:42.3]} 26. Nc4 {[%clk 0:00:52.9]}
26... b5 {[%clk 0:00:42.1]} 27. e5 {[%clk 0:00:53.3]} 27... bxc4 {[%clk
0:00:40.9]} 28. exf6 {[%clk 0:00:53.5]} 28... Rd2 {[%clk 0:00:38.2]} 29. Kg2
{[%clk 0:00:44.7]} 29... Rxb2 {[%clk 0:00:37]} 30. Rc1 {[%clk 0:00:44.6]} 30...
g5 {[%clk 0:00:29.7]} 31. Rxc4 {[%clk 0:00:43.8]} 31... Kh7 {[%clk 0:00:29.8]}
32. Ra4 {[%clk 0:00:42]} 32... Kg6 {[%clk 0:00:28.4]} 33. Rxa7 {[%clk
0:00:40.7]} 33... Kxf6 {[%clk 0:00:27.6]} 34. Ra5 {[%clk 0:00:37.2]} 34... Kg6
{[%clk 0:00:27.1]} 35. Kf3 {[%clk 0:00:33.4]} 35... Rb3+ {[%clk 0:00:26.2]} 36.
Kg2 {[%clk 0:00:33.5]} 36... g4 {[%clk 0:00:25.3]} 37. hxg4 {[%clk 0:00:33.1]}
37... hxg4 {[%clk 0:00:24.9]} 38. Ra8 {[%clk 0:00:24.7]} 38... f5 {[%clk
0:00:21.3]} 39. a4 {[%clk 0:00:22.5]} 39... Kg5 {[%clk 0:00:20.4]} 40. Rg8+
{[%clk 0:00:21.3]} 40... Kh4 {[%clk 0:00:19.7]} 41. Rh8+ {[%clk 0:00:19.3]}
41... Kg5 {[%clk 0:00:19.6]} 42. Rg8+ {[%clk 0:00:19.6]} 42... Kh4 {[%clk
0:00:19.7]} 43. Rh8+ {[%clk 0:00:20]} 43... Kg5 {[%clk 0:00:19.9]} 44. Rg8+
{[%clk 0:00:19.9]} 1/2-1/2

[Event "*** SCC Grand Prix: Titled Tuesday Blitz"]
[Site "Chess.com"]
[Date "2020.06.23"]
[Round "5"]
[White "MathiasWomacka"]
[Black "DenisQ"]
[Result "0-1"]
[WhiteElo "2418"]
[BlackElo "2640"]
[TimeControl "180+1"]
[EndTime "10:57:06 PDT"]
[Termination "DenisQ won by resignation"]

1. e4 {[%clk 0:03:00.9]} 1... c6 {[%clk 0:02:57]} 2. d4 {[%clk 0:03:00.6]} 2...
d5 {[%clk 0:02:57.9]} 3. Nd2 {[%clk 0:03:00.9]} 3... dxe4 {[%clk 0:02:57.3]} 4.
Nxe4 {[%clk 0:03:01.8]} 4... Bf5 {[%clk 0:02:57.5]} 5. Ng3 {[%clk 0:03:01.6]}
5... Bg6 {[%clk 0:02:57.7]} 6. h4 {[%clk 0:03:01.9]} 6... h6 {[%clk 0:02:57.5]}
7. Nf3 {[%clk 0:03:01.9]} 7... Nf6 {[%clk 0:02:57.6]} 8. Ne5 {[%clk 0:03:01.3]}
8... Bh7 {[%clk 0:02:57.4]} 9. Bd3 {[%clk 0:03:01.9]} 9... Bxd3 {[%clk
0:02:54.2]} 10. Qxd3 {[%clk 0:03:02.8]} 10... e6 {[%clk 0:02:53.7]} 11. Bd2
{[%clk 0:02:58.6]} 11... Nbd7 {[%clk 0:02:52.8]} 12. f4 {[%clk 0:02:58.6]} 12...
Bd6 {[%clk 0:02:50.2]} 13. O-O-O {[%clk 0:02:56.9]} 13... O-O {[%clk 0:02:50.2]}
14. Qf3 {[%clk 0:02:45.2]} 14... Qc7 {[%clk 0:02:44.5]} 15. Ne2 {[%clk
0:02:39.3]} 15... c5 {[%clk 0:02:40.3]} 16. g4 {[%clk 0:02:37.7]} 16... cxd4
{[%clk 0:02:35.2]} 17. Nxd7 {[%clk 0:02:12.6]} 17... Nxd7 {[%clk 0:02:31.7]} 18.
Nxd4 {[%clk 0:02:12.3]} 18... Qc4 {[%clk 0:02:08.7]} 19. Nb3 {[%clk 0:02:07.6]}
19... Rac8 {[%clk 0:02:05.1]} 20. c3 {[%clk 0:02:07.5]} 20... Nc5 {[%clk
0:02:04.1]} 21. Nxc5 {[%clk 0:02:02]} 21... Rxc5 {[%clk 0:02:03.5]} 22. Be3
{[%clk 0:01:33.1]} 22... Rd5 {[%clk 0:01:54.2]} 23. Rxd5 {[%clk 0:01:28.5]}
23... exd5 {[%clk 0:01:55.1]} 24. Rd1 {[%clk 0:01:14.8]} 24... Qxa2 {[%clk
0:00:39.9]} 25. Qxd5 {[%clk 0:01:14.1]} 25... Qa1+ {[%clk 0:00:39.5]} 26. Kc2
{[%clk 0:01:13.3]} 26... Qa4+ {[%clk 0:00:39.6]} 27. Kb1 {[%clk 0:01:02.4]}
27... Re8 {[%clk 0:00:38.6]} 28. Qxd6 {[%clk 0:00:46.8]} 28... Rxe3 {[%clk
0:00:36.8]} 29. g5 {[%clk 0:00:46.9]} 29... Re2 {[%clk 0:00:18.1]} 30. Qd8+
{[%clk 0:00:39.5]} 30... Kh7 {[%clk 0:00:18.1]} 31. Qd3+ {[%clk 0:00:39.2]}
31... Qe4 {[%clk 0:00:18.5]} 32. gxh6 {[%clk 0:00:37]} 32... Kxh6 {[%clk
0:00:16.6]} 33. Qxe4 {[%clk 0:00:34.8]} 33... Rxe4 {[%clk 0:00:16.4]} 34. Rd7
{[%clk 0:00:35.7]} 34... Rxf4 {[%clk 0:00:16.5]} 35. Rxb7 {[%clk 0:00:35.9]}
35... a5 {[%clk 0:00:16.3]} 36. Ka2 {[%clk 0:00:28.9]} 36... f6 {[%clk
0:00:15.7]} 37. Rb5 {[%clk 0:00:19.3]} 37... a4 {[%clk 0:00:15]} 38. Rb4 {[%clk
0:00:19.7]} 38... g5 {[%clk 0:00:13.1]} 39. hxg5+ {[%clk 0:00:16.8]} 39... fxg5
{[%clk 0:00:14]} 40. Ka3 {[%clk 0:00:14.1]} 40... Rxb4 {[%clk 0:00:11.6]} 41.
cxb4 {[%clk 0:00:15]} 41... g4 {[%clk 0:00:10.9]} 42. b5 {[%clk 0:00:15.3]}
42... g3 {[%clk 0:00:11.8]} 43. b6 {[%clk 0:00:15.7]} 43... g2 {[%clk
0:00:12.7]} 44. b7 {[%clk 0:00:16.1]} 44... g1=Q {[%clk 0:00:13]} 45. b8=Q
{[%clk 0:00:16.1]} 45... Qa1+ {[%clk 0:00:12.7]} 46. Kb4 {[%clk 0:00:15.7]}
46... Qxb2+ {[%clk 0:00:12.8]} 47. Kxa4 {[%clk 0:00:16]} 47... Qxb8 {[%clk
0:00:12.5]} 0-1

[Event "*** SCC Grand Prix: Titled Tuesday Blitz"]
[Site "Chess.com"]
[Date "2020.06.23"]
[Round "5"]
[White "korbul"]
[Black "ZverevLev"]
[Result "0-1"]
[WhiteElo "2494"]
[BlackElo "2353"]
[TimeControl "180+1"]
[EndTime "10:57:06 PDT"]
[Termination "ZverevLev won by resignation"]

1. e4 {[%clk 0:03:00.9]} 1... e5 {[%clk 0:02:58]} 2. Nf3 {[%clk 0:03:00.1]} 2...
Nc6 {[%clk 0:02:56.2]} 3. d4 {[%clk 0:02:59.6]} 3... exd4 {[%clk 0:02:54.8]} 4.
Nxd4 {[%clk 0:03:00.5]} 4... Bc5 {[%clk 0:02:54]} 5. Be3 {[%clk 0:02:58.5]} 5...
Qf6 {[%clk 0:02:51.8]} 6. c3 {[%clk 0:02:56.7]} 6... Nge7 {[%clk 0:02:50.1]} 7.
Bc4 {[%clk 0:02:55.8]} 7... Qg6 {[%clk 0:02:49.6]} 8. O-O {[%clk 0:02:53.7]}
8... d6 {[%clk 0:02:48.8]} 9. Nd2 {[%clk 0:02:43]} 9... Ne5 {[%clk 0:02:40.9]}
10. Be2 {[%clk 0:02:33.6]} 10... Bh3 {[%clk 0:02:35]} 11. g3 {[%clk 0:02:32.5]}
11... Bxf1 {[%clk 0:02:32.2]} 12. Qxf1 {[%clk 0:02:28.3]} 12... O-O {[%clk
0:02:28.3]} 13. h3 {[%clk 0:02:21.4]} 13... f5 {[%clk 0:02:21.5]} 14. Qg2 {[%clk
0:02:16.1]} 14... Kh8 {[%clk 0:02:13.8]} 15. f4 {[%clk 0:02:13.6]} 15... N5c6
{[%clk 0:02:12]} 16. Bd3 {[%clk 0:02:05.7]} 16... Bb6 {[%clk 0:02:04.9]} 17.
exf5 {[%clk 0:02:00.4]} 17... Qf6 {[%clk 0:01:52.2]} 18. N2f3 {[%clk 0:01:56.1]}
18... Nxd4 {[%clk 0:01:21.4]} 19. Nxd4 {[%clk 0:01:55.8]} 19... c5 {[%clk
0:01:18]} 20. Ne6 {[%clk 0:01:39.9]} 20... Nxf5 {[%clk 0:01:14.9]} 21. Bxf5
{[%clk 0:01:36.4]} 21... Qxf5 {[%clk 0:01:12.5]} 22. Nxf8 {[%clk 0:01:35.9]}
22... Rxf8 {[%clk 0:01:08.5]} 23. Rd1 {[%clk 0:01:30.2]} 23... Re8 {[%clk
0:00:52.1]} 24. g4 {[%clk 0:01:29.7]} 24... Qf6 {[%clk 0:00:48.3]} 25. Qf3
{[%clk 0:01:12.8]} 25... Qe7 {[%clk 0:00:22.4]} 26. Bf2 {[%clk 0:01:00.7]} 26...
h6 {[%clk 0:00:19.8]} 27. Re1 {[%clk 0:00:55.5]} 27... Qd7 {[%clk 0:00:19.3]}
28. c4 {[%clk 0:00:53]} 28... Rxe1+ {[%clk 0:00:17.9]} 29. Bxe1 {[%clk
0:00:52.9]} 29... Qe6 {[%clk 0:00:17.7]} 30. Qf1 {[%clk 0:00:44.6]} 30... Qe3+
{[%clk 0:00:15.6]} 31. Qf2 {[%clk 0:00:42.3]} 31... Qxh3 {[%clk 0:00:14.6]} 32.
Qg2 {[%clk 0:00:34.6]} 32... Qe3+ {[%clk 0:00:13.9]} 33. Qf2 {[%clk 0:00:33.7]}
33... Qe4 {[%clk 0:00:13.7]} 34. Bc3 {[%clk 0:00:31.5]} 34... Qxc4 {[%clk
0:00:12.4]} 35. f5 {[%clk 0:00:30.9]} 35... Qxg4+ {[%clk 0:00:11.6]} 36. Kf1
{[%clk 0:00:30.3]} 36... c4 {[%clk 0:00:10.8]} 37. Qc2 {[%clk 0:00:21.9]} 37...
Qf3+ {[%clk 0:00:09.8]} 38. Ke1 {[%clk 0:00:21.7]} 38... Qh1+ {[%clk 0:00:09.6]}
39. Ke2 {[%clk 0:00:21]} 39... Qg2+ {[%clk 0:00:10.2]} 40. Kd1 {[%clk
0:00:20.2]} 40... Qf1+ {[%clk 0:00:09.6]} 41. Be1 {[%clk 0:00:20.3]} 41... Ba5
{[%clk 0:00:09.4]} 42. Qe2 {[%clk 0:00:18]} 42... Qxe1+ {[%clk 0:00:09.3]} 43.
Qxe1 {[%clk 0:00:17.8]} 43... Bxe1 {[%clk 0:00:10]} 44. Kxe1 {[%clk 0:00:18.7]}
44... Kg8 {[%clk 0:00:09.8]} 45. b3 {[%clk 0:00:19.6]} 45... cxb3 {[%clk
0:00:08.9]} 46. axb3 {[%clk 0:00:19.8]} 46... Kf7 {[%clk 0:00:09.6]} 47. Ke2
{[%clk 0:00:20.2]} 47... Kf6 {[%clk 0:00:10.2]} 48. Kf3 {[%clk 0:00:21.1]} 48...
Kxf5 {[%clk 0:00:10.9]} 0-1

[Event "*** SCC Grand Prix: Titled Tuesday Blitz"]
[Site "Chess.com"]
[Date "2020.06.23"]
[Round "5"]
[White "juniortay"]
[Black "GregShahade"]
[Result "0-1"]
[WhiteElo "2402"]
[BlackElo "2574"]
[TimeControl "180+1"]
[EndTime "10:57:08 PDT"]
[Termination "GregShahade won by checkmate"]

1. e4 {[%clk 0:03:00]} 1... e5 {[%clk 0:02:59.6]} 2. Nc3 {[%clk 0:02:59.5]} 2...
Nf6 {[%clk 0:02:59.1]} 3. Bc4 {[%clk 0:02:57]} 3... Nc6 {[%clk 0:02:56.5]} 4. d3
{[%clk 0:02:56.5]} 4... Bc5 {[%clk 0:02:56.3]} 5. f4 {[%clk 0:02:56.1]} 5... d6
{[%clk 0:02:55.1]} 6. Nf3 {[%clk 0:02:56.4]} 6... exf4 {[%clk 0:02:54.2]} 7.
Bxf4 {[%clk 0:02:55.5]} 7... O-O {[%clk 0:02:54.7]} 8. Na4 {[%clk 0:02:52.4]}
8... d5 {[%clk 0:02:26.7]} 9. exd5 {[%clk 0:02:33.3]} 9... Nxd5 {[%clk
0:02:24.4]} 10. Bxd5 {[%clk 0:02:28.6]} 10... Qxd5 {[%clk 0:02:23.9]} 11. Nxc5
{[%clk 0:02:28.3]} 11... Qxc5 {[%clk 0:02:23.6]} 12. d4 {[%clk 0:02:22.9]} 12...
Qb6 {[%clk 0:02:06.9]} 13. O-O {[%clk 0:02:09.7]} 13... Bg4 {[%clk 0:01:51.8]}
14. c3 {[%clk 0:02:01.8]} 14... Qxb2 {[%clk 0:01:43.7]} 15. h3 {[%clk
0:01:51.1]} 15... Bh5 {[%clk 0:01:16]} 16. Bd2 {[%clk 0:01:31]} 16... Qa3 {[%clk
0:01:09.4]} 17. Rb1 {[%clk 0:01:14.7]} 17... b6 {[%clk 0:01:03.6]} 18. Rb5
{[%clk 0:01:13.8]} 18... Bg6 {[%clk 0:01:00.2]} 19. h4 {[%clk 0:01:08.9]} 19...
Qxa2 {[%clk 0:00:46.6]} 20. Rg5 {[%clk 0:01:02]} 20... Qc2 {[%clk 0:00:36.8]}
21. Qe1 {[%clk 0:01:00.9]} 21... Rfe8 {[%clk 0:00:27.8]} 22. Qg3 {[%clk
0:00:58.5]} 22... h5 {[%clk 0:00:28]} 23. Qxc7 {[%clk 0:00:50.4]} 23... Nxd4
{[%clk 0:00:20.5]} 24. Nxd4 {[%clk 0:00:31.4]} 24... Qxd2 {[%clk 0:00:20.7]} 25.
Nf5 {[%clk 0:00:13.9]} 25... Bxf5 {[%clk 0:00:15.1]} 26. Rgxf5 {[%clk
0:00:13.6]} 26... Qe3+ {[%clk 0:00:13.4]} 27. Kh1 {[%clk 0:00:13.6]} 27... f6
{[%clk 0:00:13.2]} 28. Rxh5 {[%clk 0:00:11.9]} 28... Qe7 {[%clk 0:00:09.5]} 29.
Qxe7 {[%clk 0:00:11]} 29... Rxe7 {[%clk 0:00:09.5]} 30. Rhf5 {[%clk 0:00:11.3]}
30... Rc8 {[%clk 0:00:09.6]} 31. h5 {[%clk 0:00:11.5]} 31... Kh7 {[%clk
0:00:08.7]} 32. h6 {[%clk 0:00:11.6]} 32... Kxh6 {[%clk 0:00:08.5]} 33. Kh2
{[%clk 0:00:12.5]} 33... Kg6 {[%clk 0:00:08.8]} 34. Kg3 {[%clk 0:00:12.6]} 34...
Rxc3+ {[%clk 0:00:08.3]} 35. Kg4 {[%clk 0:00:12.5]} 35... Re4+ {[%clk
0:00:08.1]} 36. R5f4 {[%clk 0:00:12.8]} 36... Rxf4+ {[%clk 0:00:08.5]} 37. Kxf4
{[%clk 0:00:12.6]} 37... b5 {[%clk 0:00:08.8]} 38. Rc1 {[%clk 0:00:11.6]} 38...
Rxc1 {[%clk 0:00:08.4]} 39. g4 {[%clk 0:00:11.7]} 39... Rc4+ {[%clk 0:00:08.6]}
40. Kg3 {[%clk 0:00:11.7]} 40... b4 {[%clk 0:00:08.8]} 41. Kh4 {[%clk
0:00:11.8]} 41... b3 {[%clk 0:00:09.7]} 42. Kh3 {[%clk 0:00:12]} 42... Kg5
{[%clk 0:00:09.9]} 43. Kh2 {[%clk 0:00:12]} 43... b2 {[%clk 0:00:10.8]} 44. Kg2
{[%clk 0:00:12.6]} 44... Rc3 {[%clk 0:00:11.2]} 45. Kf2 {[%clk 0:00:13.5]} 45...
b1=Q {[%clk 0:00:11.7]} 46. Ke2 {[%clk 0:00:14.1]} 46... Qb2+ {[%clk 0:00:12.4]}
47. Kd1 {[%clk 0:00:14.4]} 47... Rc1# {[%clk 0:00:13.3]} 0-1

[Event "*** SCC Grand Prix: Titled Tuesday Blitz"]
[Site "Chess.com"]
[Date "2020.06.23"]
[Round "5"]
[White "yamalchess"]
[Black "kingofkolkata"]
[Result "0-1"]
[WhiteElo "2458"]
[BlackElo "2213"]
[TimeControl "180+1"]
[EndTime "10:57:08 PDT"]
[Termination "kingofkolkata won on time"]

1. d4 {[%clk 0:03:00.9]} 1... d5 {[%clk 0:02:59.6]} 2. c4 {[%clk 0:03:00.9]}
2... e6 {[%clk 0:02:56.1]} 3. Nc3 {[%clk 0:03:01.2]} 3... Bb4 {[%clk 0:02:54.7]}
4. Nf3 {[%clk 0:02:56.7]} 4... Nf6 {[%clk 0:02:53.7]} 5. g3 {[%clk 0:02:53.1]}
5... dxc4 {[%clk 0:02:50.5]} 6. Bg2 {[%clk 0:02:52.9]} 6... O-O {[%clk
0:02:49.5]} 7. O-O {[%clk 0:02:53.3]} 7... c6 {[%clk 0:02:49.8]} 8. Ne5 {[%clk
0:02:51.2]} 8... Nd5 {[%clk 0:02:43.9]} 9. Qc2 {[%clk 0:02:41.1]} 9... b5 {[%clk
0:02:34.7]} 10. a4 {[%clk 0:02:32.7]} 10... Bxc3 {[%clk 0:02:32.6]} 11. bxc3
{[%clk 0:02:31.7]} 11... Bb7 {[%clk 0:02:27.6]} 12. Ba3 {[%clk 0:02:21.9]} 12...
Re8 {[%clk 0:02:25.4]} 13. Rfb1 {[%clk 0:02:04.6]} 13... a6 {[%clk 0:02:23.9]}
14. Nxc4 {[%clk 0:02:02.2]} 14... bxc4 {[%clk 0:01:58.3]} 15. Rxb7 {[%clk
0:02:00.7]} 15... Nd7 {[%clk 0:01:58.3]} 16. Bd6 {[%clk 0:01:32]} 16... N7b6
{[%clk 0:01:43.8]} 17. Bc5 {[%clk 0:01:20.1]} 17... Nd7 {[%clk 0:01:35.2]} 18.
Bd6 {[%clk 0:01:02]} 18... N7b6 {[%clk 0:01:31.3]} 19. Bc5 {[%clk 0:00:40.5]}
19... Nd7 {[%clk 0:01:30.7]} 20. a5 {[%clk 0:00:33.8]} 20... Nxc5 {[%clk
0:01:18.8]} 21. dxc5 {[%clk 0:00:33.8]} 21... Rb8 {[%clk 0:01:19.4]} 22. Rb6
{[%clk 0:00:23.7]} 22... Nxb6 {[%clk 0:01:11.1]} 23. axb6 {[%clk 0:00:23.7]}
23... Qc8 {[%clk 0:01:11.2]} 24. Qa4 {[%clk 0:00:20]} 24... Rd8 {[%clk
0:01:05.8]} 25. Bf3 {[%clk 0:00:18.4]} 25... Rd5 {[%clk 0:00:57.9]} 26. Bxd5
{[%clk 0:00:17.7]} 26... cxd5 {[%clk 0:00:58.8]} 27. Qb4 {[%clk 0:00:16.7]}
27... h6 {[%clk 0:00:52.1]} 28. Ra5 {[%clk 0:00:16.5]} 28... g6 {[%clk
0:00:42.9]} 29. e3 {[%clk 0:00:16.5]} 29... Kg7 {[%clk 0:00:43.1]} 30. e4 {[%clk
0:00:16.5]} 30... h5 {[%clk 0:00:41.6]} 31. exd5 {[%clk 0:00:16.4]} 31... exd5
{[%clk 0:00:42.5]} 32. h4 {[%clk 0:00:16.4]} 32... Qe6 {[%clk 0:00:33.1]} 33.
Qb1 {[%clk 0:00:14.8]} 33... Qc6 {[%clk 0:00:29.7]} 34. Qd1 {[%clk 0:00:14.3]}
34... Kh7 {[%clk 0:00:20.7]} 35. Qd4 {[%clk 0:00:14.1]} 35... Ra8 {[%clk
0:00:15.6]} 36. Kh2 {[%clk 0:00:08.8]} 36... Qb7 {[%clk 0:00:11.1]} 37. Qf6
{[%clk 0:00:07.7]} 37... Rc8 {[%clk 0:00:08.5]} 38. Qd6 {[%clk 0:00:06.9]} 38...
Re8 {[%clk 0:00:05.3]} 39. Ra2 {[%clk 0:00:03.2]} 39... Re6 {[%clk 0:00:04.3]}
0-1

[Event "*** SCC Grand Prix: Titled Tuesday Blitz"]
[Site "Chess.com"]
[Date "2020.06.23"]
[Round "5"]
[White "stanyga"]
[Black "SilviusTiberius"]
[Result "1-0"]
[WhiteElo "2600"]
[BlackElo "2413"]
[TimeControl "180+1"]
[EndTime "10:57:10 PDT"]
[Termination "stanyga won by resignation"]

1. d4 {[%clk 0:03:00.9]} 1... Nf6 {[%clk 0:02:59.6]} 2. c4 {[%clk 0:02:59.8]}
2... g6 {[%clk 0:03:00]} 3. g3 {[%clk 0:02:59.6]} 3... Bg7 {[%clk 0:03:00.5]} 4.
Bg2 {[%clk 0:02:59.8]} 4... O-O {[%clk 0:03:01.1]} 5. Nc3 {[%clk 0:02:59.6]}
5... d6 {[%clk 0:03:01.6]} 6. Nf3 {[%clk 0:02:57.4]} 6... Nc6 {[%clk 0:03:01.9]}
7. d5 {[%clk 0:02:56.5]} 7... Na5 {[%clk 0:03:01.6]} 8. Nd2 {[%clk 0:02:56.5]}
8... c5 {[%clk 0:03:01.9]} 9. Rb1 {[%clk 0:02:54.1]} 9... a6 {[%clk 0:03:00.7]}
10. a3 {[%clk 0:02:49.2]} 10... b5 {[%clk 0:02:59.2]} 11. cxb5 {[%clk
0:02:42.9]} 11... axb5 {[%clk 0:03:00.1]} 12. b4 {[%clk 0:02:43]} 12... cxb4
{[%clk 0:02:49.5]} 13. axb4 {[%clk 0:02:42.4]} 13... Nc4 {[%clk 0:02:49.8]} 14.
Nxb5 {[%clk 0:02:23.4]} 14... Bf5 {[%clk 0:02:39]} 15. Rb3 {[%clk 0:02:17.1]}
15... Nxd2 {[%clk 0:02:33.1]} 16. Qxd2 {[%clk 0:01:37.7]} 16... Ne4 {[%clk
0:02:26.9]} 17. Qe3 {[%clk 0:01:37.7]} 17... Qc8 {[%clk 0:01:23.9]} 18. O-O
{[%clk 0:01:30.9]} 18... Qc4 {[%clk 0:01:18.5]} 19. Na3 {[%clk 0:01:26.2]} 19...
Rxa3 {[%clk 0:00:55.8]} 20. Bxa3 {[%clk 0:01:22.9]} 20... Nc3 {[%clk 0:00:55]}
21. Rxc3 {[%clk 0:01:13.8]} 21... Qxc3 {[%clk 0:00:54.6]} 22. Qxc3 {[%clk
0:01:08.6]} 22... Bxc3 {[%clk 0:00:55.5]} 23. e4 {[%clk 0:01:02.6]} 23... Bg4
{[%clk 0:00:55.2]} 24. Rc1 {[%clk 0:00:55.5]} 24... Bd4 {[%clk 0:00:50.2]} 25.
Rc4 {[%clk 0:00:44.8]} 25... Bb6 {[%clk 0:00:40.9]} 26. Bb2 {[%clk 0:00:40]}
26... Ra8 {[%clk 0:00:33.2]} 27. h3 {[%clk 0:00:34.2]} 27... Bd7 {[%clk
0:00:24.5]} 28. Rc2 {[%clk 0:00:28.1]} 28... Ra2 {[%clk 0:00:19.8]} 29. e5
{[%clk 0:00:20.1]} 29... dxe5 {[%clk 0:00:16.3]} 30. Be4 {[%clk 0:00:17.9]}
30... f5 {[%clk 0:00:16.4]} 31. Bd3 {[%clk 0:00:17.5]} 31... Ba4 {[%clk
0:00:15.1]} 32. Bc4 {[%clk 0:00:08.5]} 32... Bxc2 {[%clk 0:00:11.6]} 33. Bxa2
{[%clk 0:00:08.5]} 33... Bd4 {[%clk 0:00:08.5]} 34. Bxd4 {[%clk 0:00:07.6]}
34... exd4 {[%clk 0:00:09.2]} 35. d6+ {[%clk 0:00:08]} 35... Kg7 {[%clk
0:00:06.7]} 36. d7 {[%clk 0:00:08.3]} 36... d3 {[%clk 0:00:07.3]} 37. d8=Q
{[%clk 0:00:07.2]} 37... d2 {[%clk 0:00:08.2]} 38. Qxd2 {[%clk 0:00:07]} 1-0

[Event "*** SCC Grand Prix: Titled Tuesday Blitz"]
[Site "Chess.com"]
[Date "2020.06.23"]
[Round "5"]
[White "LiemLe"]
[Black "Ginger_GM"]
[Result "1-0"]
[WhiteElo "2997"]
[BlackElo "2664"]
[TimeControl "180+1"]
[EndTime "10:57:12 PDT"]
[Termination "LiemLe won by checkmate"]

1. d4 {[%clk 0:03:00.9]} 1... e6 {[%clk 0:02:48.1]} 2. Nf3 {[%clk 0:03:00]} 2...
f5 {[%clk 0:02:46.8]} 3. g3 {[%clk 0:02:59.1]} 3... Nf6 {[%clk 0:02:46.3]} 4.
Bg2 {[%clk 0:02:56.6]} 4... Be7 {[%clk 0:02:45.9]} 5. O-O {[%clk 0:02:57.1]}
5... O-O {[%clk 0:02:41.5]} 6. c4 {[%clk 0:02:57.7]} 6... d6 {[%clk 0:02:39.6]}
7. Nc3 {[%clk 0:02:56]} 7... Ne4 {[%clk 0:02:39.4]} 8. Qc2 {[%clk 0:02:48.5]}
8... Nxc3 {[%clk 0:02:38.3]} 9. bxc3 {[%clk 0:02:45.4]} 9... Nc6 {[%clk
0:02:38.1]} 10. e4 {[%clk 0:02:42.2]} 10... e5 {[%clk 0:02:38.4]} 11. Re1 {[%clk
0:02:36.8]} 11... f4 {[%clk 0:02:34.7]} 12. gxf4 {[%clk 0:02:24.1]} 12... exf4
{[%clk 0:02:34.4]} 13. e5 {[%clk 0:01:41.3]} 13... dxe5 {[%clk 0:02:33.7]} 14.
d5 {[%clk 0:01:32.8]} 14... Na5 {[%clk 0:02:07.6]} 15. Nxe5 {[%clk 0:01:32.7]}
15... Bd6 {[%clk 0:01:50.9]} 16. Qa4 {[%clk 0:01:27.3]} 16... b5 {[%clk
0:01:17.2]} 17. Qxa5 {[%clk 0:01:26.3]} 17... f3 {[%clk 0:01:02.9]} 18. Ba3
{[%clk 0:00:56.7]} 18... Qg5 {[%clk 0:00:52.1]} 19. Nxf3 {[%clk 0:00:56.2]}
19... Rxf3 {[%clk 0:00:47.9]} 20. Bxd6 {[%clk 0:00:56]} 20... cxd6 {[%clk
0:00:39.6]} 21. Re8+ {[%clk 0:00:25.8]} 21... Kf7 {[%clk 0:00:39.5]} 22. Qd8
{[%clk 0:00:23.1]} 22... Rf6 {[%clk 0:00:26.5]} 23. Rf8+ {[%clk 0:00:14.5]}
23... Kg6 {[%clk 0:00:26.8]} 24. Rxf6+ {[%clk 0:00:14.5]} 24... gxf6 {[%clk
0:00:26.2]} 25. Qg8+ {[%clk 0:00:14]} 25... Kf5 {[%clk 0:00:22.2]} 26. Qxh7+
{[%clk 0:00:14]} 26... Kf4 {[%clk 0:00:20.9]} 27. Qd3 {[%clk 0:00:13.5]} 27...
Qg4 {[%clk 0:00:10.7]} 28. Re1 {[%clk 0:00:11.4]} 28... Kg5 {[%clk 0:00:10.7]}
29. Re7 {[%clk 0:00:09.3]} 29... Bf5 {[%clk 0:00:10.2]} 30. Rg7+ {[%clk
0:00:08.5]} 30... Kh6 {[%clk 0:00:08.1]} 31. Rxg4 {[%clk 0:00:09.4]} 31... Bxd3
{[%clk 0:00:08.4]} 32. cxb5 {[%clk 0:00:09.7]} 32... Re8 {[%clk 0:00:07.7]} 33.
h4 {[%clk 0:00:08.5]} 33... Re1+ {[%clk 0:00:07.4]} 34. Kh2 {[%clk 0:00:08.3]}
34... Bxb5 {[%clk 0:00:07.6]} 35. c4 {[%clk 0:00:08.1]} 35... Bd7 {[%clk
0:00:06.9]} 36. Rf4 {[%clk 0:00:08.6]} 36... Kg7 {[%clk 0:00:06.9]} 37. Bh3
{[%clk 0:00:08.2]} 37... Bxh3 {[%clk 0:00:06.1]} 38. Kxh3 {[%clk 0:00:09.1]}
38... Re2 {[%clk 0:00:06.6]} 39. a3 {[%clk 0:00:07.9]} 39... Ra2 {[%clk
0:00:06.7]} 40. Rf3 {[%clk 0:00:06.1]} 40... Rc2 {[%clk 0:00:07]} 41. Kg4 {[%clk
0:00:06.3]} 41... Rxc4+ {[%clk 0:00:07.2]} 42. Kf5 {[%clk 0:00:06.4]} 42... Kf7
{[%clk 0:00:05.7]} 43. Rb3 {[%clk 0:00:05]} 43... Rc7 {[%clk 0:00:03.3]} 44. h5
{[%clk 0:00:04.1]} 44... Re7 {[%clk 0:00:03.7]} 45. f4 {[%clk 0:00:04.7]} 45...
Kg7 {[%clk 0:00:03.4]} 46. h6+ {[%clk 0:00:04.7]} 46... Kxh6 {[%clk 0:00:03.6]}
47. Kxf6 {[%clk 0:00:05.6]} 47... Re4 {[%clk 0:00:03.8]} 48. Rh3# {[%clk
0:00:05.7]} 1-0